[Event "Baltic Zonal II Stage 2018"]
[Site "Palanga"]
[Date "2018.06.15"]
[Round "3"]
[White "Haavamae, Henrik"]
[Black "Garanin, Aleksei"]
[Result "0-1"]
[ECO "B23"]
[WhiteElo "2209"]
[BlackElo "2171"]
[Annotator "NA"]
[PlyCount "90"]
[EventDate "2018.??.??"]
[EventType "swiss"]
[EventCountry "LTU"]
[SourceTitle "playchess.com"]
[Source "ChessBase"]
[SourceQuality "1"]
[TimeControl "5400+30"]

1. e4 {[%emt 0:00:00]} c5 {[%emt 0:00:10]} 2. Nc3 {[%emt 0:00:00]} d6 {[%emt 0:00:31]} 3. d4 {[%emt 0:00:02]} cxd4 {[%emt 0:01:03]} 4. Qxd4 {[%emt 0:00:05]} Nc6 {[%emt 0:00:51]} 5. Qd2 {[%emt 0:00:09]} Nf6 {[%emt 0:02:33]} 6. b3 {[%emt 0:00:20]} g6 {[%emt 0:02:34]} 7. Bb2 {[%emt 0:00:28]} Bg7 {[%emt 0:00:28]} 8. O-O-O {[%emt 0:01:42]} O-O {[%emt 0:00:19]} 9. f3 {[%emt 0:01:16]} a5 {[%emt 0:18:03]} 10. Bb5 {[%emt 0:04:38]} Qb6 {[%emt 0:01:52]} 11. Kb1 {[%emt 0:07:16]} Rd8 {[%emt 0:11:52]} 12. g4 {[%emt 0:17:11]} Be6 {[%emt 0:14:32]} 13. g5 {[%emt 0:00:58]} Ne8 {[%emt 0:02:22]} 14. a4 {[%emt 0:24:30]} Nc7 {[%emt 0:02:24]} 15. Nge2 {[%emt 0:13:04]} d5 {[%emt 0:12:36]} 16. exd5 {[%emt 0:08:48]} Bxd5 {[%emt 0:02:48]} 17. Nxd5 {[%emt 0:02:07]} Rxd5 {[%emt 0:00:15]} 18. Bd3 {[%emt 0:00:15]} Bxb2 {[%emt 0:00:12]} 19. Kxb2 {[%emt 0:00:07]} Ne6 {[%emt 0:00:56]} 20. Nc3 {[%emt 0:04:12]} Qd4 {[%emt 0:02:59]} 21. Kb1 {[%emt 0:03:32]} Rxg5 {[%emt 0:03:14]} 22. h4 {[%emt 0:03:45]} Rh5 {[%emt 0:00:18]} 23. Ne2 {[%emt 0:01:46]} Qf6 {[%emt 0:04:10]} 24. Ng3 {[%emt 0:00:49]} Rxh4 {[%emt 0:01:09]} 25. Qf2 {[%emt 0:03:27]} Rxh1 {[%emt 0:00:51]} 26. Rxh1 {[%emt 0:00:05]} Rd8 {[%emt 0:02:28]} 27. Qh2 {[%emt 0:01:17]} Nf8 {[%emt 0:00:36]} 28. Ne4 {[%emt 0:00:27]} Qg7 {[%emt 0:01:17]} 29. Qc7 {[%emt 0:00:38]} Rd7 {[%emt 0:01:12]} 30. Qc8 {[%emt 0:00:39]} Qe5 {[%emt 0:01:47]} 31. Bc4 {[%emt 0:01:24]} Qb8 {[%emt 0:05:02]} 32. Qxb8 {[%emt 0:00:06]} Nxb8 {[%emt 0:00:05]} 33. c3 {[%emt 0:00:54]} b6 {[%emt 0:00:27]} 34. b4 {[%emt 0:00:22]} axb4 {[%emt 0:00:19]} 35. cxb4 {[%emt 0:00:06]} Rd4 {[%emt 0:00:23]} 36. Rh4 {[%emt 0:01:03]} Kg7 {[%emt 0:01:04]} 37. Bxf7 {[%emt 0:00:29]} Rxb4+ {[%emt 0:00:09]} 38. Kc2 {[%emt 0:00:05]} Rxe4 {[%emt 0:00:53]} 39. Rxe4 {[%emt 0:00:32]} Kxf7 {[%emt 0:00:01]} 40. Kc3 {[%emt 0:00:51]} Ne6 {[%emt 0:00:16]} 41. Kc4 {[%emt 0:00:27]} Nd7 {[%emt 0:00:42]} 42. Kb5 {[%emt 0:00:19]} Nec5 {[%emt 0:00:18]} 43. Rd4 {[%emt 0:00:35]} Ke6 {[%emt 0:00:17]} 44. Kc6 {[%emt 0:00:08]} h5 {[%emt 0:00:32]} 45. Rd1 {[%emt 0:00:35]} h4 {[%emt 0:01:11]} 0-1

[Event "Baltic Zonal II Stage 2018"]
[Site "Palanga"]
[Date "2018.06.16"]
[Round "4"]
[White "Bernotas, Arturs"]
[Black "Haavamae, Henrik"]
[Result "1-0"]
[ECO "B52"]
[WhiteElo "2407"]
[BlackElo "2209"]
[Annotator "NA"]
[PlyCount "73"]
[EventDate "2018.??.??"]
[EventType "swiss"]
[EventCountry "LTU"]
[SourceTitle "playchess.com"]
[Source "ChessBase"]
[SourceQuality "1"]
[TimeControl "5400+30"]

1. e4 {[%emt 0:00:00]} c5 {[%emt 0:00:16]} 2. Nf3 {[%emt 0:00:00]} d6 {[%emt 0:00:38]} 3. Bb5+ {[%emt 0:00:17]} Bd7 {[%emt 0:00:13]} 4. c4 {[%emt 0:00:24]} Nf6 {[%emt 0:00:24]} 5. Nc3 {[%emt 0:00:12]} g6 {[%emt 0:00:25]} 6. O-O {[%emt 0:00:18]} Bg7 {[%emt 0:00:05]} 7. d4 {[%emt 0:00:27]} cxd4 {[%emt 0:00:06]} 8. Nxd4 {[%emt 0:00:06]} Nc6 {[%emt 0:00:06]} 9. Bxc6 {[%emt 0:06:16]} bxc6 {[%emt 0:01:02]} 10. c5 {[%emt 0:01:22]} O-O {[%emt 0:07:59]} 11. h3 {[%emt 0:04:40]} Qc7 {[%emt 0:10:48]} 12. cxd6 {[%emt 0:01:59]} exd6 {[%emt 0:00:42]} 13. Bf4 {[%emt 0:00:55]} Rfd8 {[%emt 0:05:45]} 14. Re1 {[%emt 0:06:34]} c5 {[%emt 0:04:52]} 15. Nc2 {[%emt 0:22:25]} Bc6 {[%emt 0:01:15]} 16. Qf3 {[%emt 0:07:05]} Nd7 {[%emt 0:13:13]} 17. Ne3 {[%emt 0:04:28]} Ne5 {[%emt 0:02:04]} 18. Qe2 {[%emt 0:02:04]} Qb7 {[%emt 0:02:23]} 19. Ned5 {[%emt 0:01:01]} Bxd5 {[%emt 0:17:53]} 20. Nxd5 {[%emt 0:01:33]} Rab8 {[%emt 0:04:00]} 21. Rab1 {[%emt 0:05:05]} Qb5 {[%emt 0:02:07]} 22. Bg5 {[%emt 0:04:32]} Rd7 {[%emt 0:08:19]} 23. Nf6+ {[%emt 0:06:23]} Bxf6 {[%emt 0:00:33]} 24. Bxf6 {[%emt 0:03:25]} Qxe2 {[%emt 0:01:45]} 25. Rxe2 {[%emt 0:00:04]} Nd3 {[%emt 0:08:08]} 26. Rd1 {[%emt 0:02:29]} c4 {[%emt 0:01:14]} 27. Rc2 {[%emt 0:02:23]} Rdb7 {[%emt 0:02:47]} 28. Rdd2 {[%emt 0:04:12]} Rb4 {[%emt 0:00:45]} 29. f3 {[%emt 0:04:56]} Kf8 {[%emt 0:02:38]} 30. b3 {[%emt 0:04:45]} cxb3 {[%emt 0:00:39]} 31. axb3 {[%emt 0:00:03]} Rxb3 {[%emt 0:00:34]} 32. Rc7 {[%emt 0:00:05]} a5 {[%emt 0:01:41]} 33. Rdc2 {[%emt 0:00:19]} Re8 {[%emt 0:01:07]} 34. R2c6 {[%emt 0:02:58]} Ne5 {[%emt 0:00:31]} 35. Rxd6 {[%emt 0:00:37]} Rb1+ {[%emt 0:00:30]} 36. Kh2 {[%emt 0:00:18]} Kg8 {[%emt 0:00:28]} 37. Re7 1-0

[Event "Baltic Zonal II Stage 2018"]
[Site "Palanga"]
[Date "2018.06.16"]
[Round "4"]
[White "Chukavin, Kirill"]
[Black "Vedrickas, Tautvydas"]
[Result "1-0"]
[ECO "C10"]
[WhiteElo "2256"]
[BlackElo "2408"]
[Annotator "NA"]
[PlyCount "111"]
[EventDate "2018.??.??"]
[EventType "swiss"]
[EventCountry "LTU"]
[SourceTitle "playchess.com"]
[Source "ChessBase"]
[SourceQuality "1"]
[TimeControl "5400+30"]

1. e4 {[%emt 0:00:00]} e6 {[%emt 0:00:33]} 2. d4 {[%emt 0:00:06]} d5 {[%emt 0:00:06]} 3. Nc3 {[%emt 0:01:32]} dxe4 {[%emt 0:00:08]} 4. Nxe4 {[%emt 0:00:15]} Nf6 {[%emt 0:00:13]} 5. Nxf6+ {[%emt 0:06:31]} gxf6 {[%emt 0:04:03]} 6. Nf3 {[%emt 0:01:05]} b6 {[%emt 0:00:06]} 7. Bb5+ {[%emt 0:03:06]} c6 {[%emt 0:00:07]} 8. Bd3 {[%emt 0:02:06]} Bb7 {[%emt 0:00:47]} 9. Qe2 {[%emt 0:03:31]} Qc7 {[%emt 0:01:59]} 10. Bd2 {[%emt 0:14:40]} Bd6 {[%emt 0:11:27]} 11. c4 {[%emt 0:03:20]} Nd7 {[%emt 0:10:18]} 12. Bc3 {[%emt 0:16:00]} O-O-O {[%emt 0:03:14]} 13. O-O-O {[%emt 0:01:55]} Kb8 {[%emt 0:09:13]} 14. Rhe1 {[%emt 0:03:13]} Rhg8 {[%emt 0:12:50]} 15. g3 {[%emt 0:02:35]} f5 {[%emt 0:00:40]} 16. Ne5 {[%emt 0:09:48]} Nf6 {[%emt 0:16:19]} 17. f4 {[%emt 0:09:22]} Ka8 {[%emt 0:01:45]} 18. Nf3 {[%emt 0:03:29]} Rde8 {[%emt 0:06:12]} 19. Kb1 {[%emt 0:01:49]} h6 {[%emt 0:06:33]} 20. Ka1 {[%emt 0:00:43]} Qc8 {[%emt 0:04:32]} 21. Qc2 {[%emt 0:02:22]} Ng4 {[%emt 0:01:07]} 22. Bf1 {[%emt 0:08:17]} Nf6 {[%emt 0:04:17]} 23. Nd2 {[%emt 0:00:35]} h5 {[%emt 0:00:46]} 24. d5 {[%emt 0:01:13]} Ng4 {[%emt 0:00:09]} 25. dxc6 {[%emt 0:01:44]} Qxc6 {[%emt 0:01:21]} 26. Nb3 {[%emt 0:00:15]} Rd8 {[%emt 0:01:43]} 27. Nd4 {[%emt 0:00:33]} Qh1 {[%emt 0:00:47]} 28. Re2 {[%emt 0:02:07]} Bc5 {[%emt 0:02:32]} 29. Bh3 {[%emt 0:00:36]} Bxd4 {[%emt 0:00:31]} 30. Rxh1 {[%emt 0:00:33]} Bxh1 {[%emt 0:00:11]} 31. Re1 {[%emt 0:01:24]} Ne3 {[%emt 0:00:48]} 32. Qe2 {[%emt 0:00:33]} Be4 {[%emt 0:00:13]} 33. Rc1 {[%emt 0:00:32]} Bxc3 {[%emt 0:00:20]} 34. bxc3 {[%emt 0:00:16]} Rd3 {[%emt 0:00:13]} 35. Bf1 {[%emt 0:00:45]} Rgd8 {[%emt 0:00:35]} 36. Qf2 {[%emt 0:00:25]} Ng4 {[%emt 0:01:14]} 37. Qg1 {[%emt 0:00:42]} Rd1 {[%emt 0:00:27]} 38. Rxd1 {[%emt 0:00:02]} Rxd1+ {[%emt 0:00:06]} 39. Kb2 {[%emt 0:00:02]} Rd2+ {[%emt 0:00:38]} 40. Ka3 {[%emt 0:00:21]} Nxh2 {[%emt 0:00:21]} 41. c5 {[%emt 0:00:50]} Kb7 {[%emt 0:00:48]} 42. cxb6 {[%emt 0:00:34]} axb6 {[%emt 0:00:10]} 43. Bc4 {[%emt 0:00:53]} Ng4 {[%emt 0:00:20]} 44. Qe1 {[%emt 0:00:44]} Rd8 {[%emt 0:00:35]} 45. Qe2 {[%emt 0:00:29]} Nf6 {[%emt 0:00:46]} 46. Qb2 {[%emt 0:00:32]} Ra8+ {[%emt 0:00:32]} 47. Kb4 {[%emt 0:00:18]} Nd7 {[%emt 0:00:46]} 48. Qd2 {[%emt 0:00:32]} Nc5 {[%emt 0:00:10]} 49. Bb5 {[%emt 0:00:07]} Kc7 {[%emt 0:00:13]} 50. a4 {[%emt 0:00:48]} Bd3 {[%emt 0:01:10]} 51. c4 {[%emt 0:00:44]} Rd8 {[%emt 0:00:17]} 52. a5 {[%emt 0:00:25]} Ne4 {[%emt 0:00:44]} 53. axb6+ {[%emt 0:00:08]} Kxb6 {[%emt 0:00:07]} 54. c5+ {[%emt 0:00:46]} Nxc5 {[%emt 0:00:55]} 55. Qe3 {[%emt 0:00:18]} Rd5 {[%emt 0:00:22]} 56. Bxd3 {[%emt 0:00:05]} 1-0

[Event "Baltic Zonal II Stage 2018"]
[Site "Palanga"]
[Date "2018.06.16"]
[Round "4"]
[White "Garanin, Aleksei"]
[Black "Samolins, Vitalijs"]
[Result "0-1"]
[ECO "A64"]
[WhiteElo "2171"]
[BlackElo "2406"]
[Annotator "NA"]
[PlyCount "52"]
[EventDate "2018.??.??"]
[EventType "swiss"]
[EventCountry "LTU"]
[SourceTitle "playchess.com"]
[Source "ChessBase"]
[SourceQuality "1"]
[TimeControl "5400+30"]

1. d4 {[%emt 0:00:00]} Nf6 {[%emt 0:00:05]} 2. c4 {[%emt 0:00:00]} e6 {[%emt 0:00:03]} 3. g3 {[%emt 0:00:00]} c5 {[%emt 0:00:25]} 4. d5 {[%emt 0:00:18]} exd5 {[%emt 0:00:10]} 5. cxd5 {[%emt 0:00:01]} g6 {[%emt 0:00:13]} 6. Nc3 {[%emt 0:00:21]} Bg7 {[%emt 0:00:21]} 7. Bg2 {[%emt 0:00:19]} O-O {[%emt 0:00:26]} 8. Nf3 {[%emt 0:00:10]} d6 {[%emt 0:00:25]} 9. O-O {[%emt 0:00:12]} Re8 {[%emt 0:00:12]} 10. Nd2 {[%emt 0:00:40]} a6 {[%emt 0:01:26]} 11. a4 {[%emt 0:00:18]} Nbd7 {[%emt 0:00:47]} 12. h3 {[%emt 0:07:20]} Rb8 {[%emt 0:02:02]} 13. Nc4 {[%emt 0:02:09]} Ne5 {[%emt 0:02:26]} 14. Na3 {[%emt 0:00:36]} Nh5 {[%emt 0:03:08]} 15. f4 {[%emt 0:10:15]} Nxg3 {[%emt 0:18:25]} 16. fxe5 {[%emt 0:00:29]} Bxe5 {[%emt 0:00:50]} 17. Nc4 {[%emt 0:15:29]} Bxc3 {[%emt 0:22:23]} 18. bxc3 {[%emt 0:00:22]} Bxh3 {[%emt 0:01:06]} 19. Ne3 {[%emt 0:24:05]} Bxg2 {[%emt 0:03:46]} 20. Kxg2 {[%emt 0:09:00]} Nxf1 {[%emt 0:00:23]} 21. Nxf1 {[%emt 0:00:53]} Qf6 {[%emt 0:11:04]} 22. Qd3 {[%emt 0:06:38]} Re5 {[%emt 0:05:28]} 23. Bd2 {[%emt 0:05:33]} h5 {[%emt 0:01:56]} 24. Nh2 {[%emt 0:06:22]} Rbe8 {[%emt 0:03:21]} 25. Re1 {[%emt 0:00:11]} Re4 {[%emt 0:00:15]} 26. Nf3 {[%emt 0:01:09]} c4 {[%emt 0:00:39]} 0-1

[Event "Baltic Zonal II Stage 2018"]
[Site "Palanga"]
[Date "2018.06.17"]
[Round "5"]
[White "Pedoson, Georg Aleksander"]
[Black "Haavamae, Henrik"]
[Result "1-0"]
[ECO "A16"]
[WhiteElo "2125"]
[BlackElo "2209"]
[Annotator "NA"]
[PlyCount "41"]
[EventDate "2018.??.??"]
[EventType "swiss"]
[EventCountry "LTU"]
[SourceTitle "playchess.com"]
[Source "ChessBase"]
[SourceQuality "1"]
[TimeControl "5400+30"]

{[%evp 10,40,124,147,159,32767,302,32767,331,323,521,557,554,592,630,612,1153,32767,506,504,502,569,959,32767,32767,32767,32767,32767,617,603,592,560,777]} 1. c4 {[%emt 0:00:00]} Nf6 {[%emt 0:00:12]} 2. Nc3 {[%emt 0:00:00]} c6 {[%emt 0:01:24]} 3. Nf3 {[%emt 0:01:04]} d5 {[%emt 0:00:21]} 4. d4 {[%emt 0:01:18]} Bf5 {[%emt 0:02:48]} 5. Qb3 {[%emt 0:03:35]} b6 {[%emt 0:03:26]} ({Besser ist} 5... Qb6 $14) 6. cxd5 {[%emt 0:01:34]} cxd5 {[%emt 0:00:07]} 7. Bg5 {[%emt 0:01:23]} e6 $2 {[%emt 0:01:49] [#] D13: Slav Defence: Exchange variation without ...Bf5} (7... Nbd7 $16) 8. e4 $1 {[%emt 0:10:04]} dxe4 {[%emt 0:15:32]} 9. Bb5+ {[%emt 0:11:48]} Ke7 $2 {[%emt 0:00:28]} (9... Nbd7) 10. Ne5 {[%emt 0:00:12]} a6 {[%emt 0:10:38]} 11. Bc6 {[%emt 0:01:27]} Ra7 {[%emt 0:00:05]} 12. d5 {[%emt 0:00:30]} h6 {[%emt 0:03:42]} 13. Qb4+ {[%emt 0:11:13]} Qd6 {[%emt 0:00:15]} 14. Qxb6 {[%emt 0:00:03]} hxg5 $146 {[%emt 0:03:39]} ({Predecessor:} 14... Qc7 15. d6+ Kxd6 16. Qb4+ Kxe5 17. f4+ exf3 18. Qf4# {1-0 (18) Dzagnidze,N (2479)-Al Housa,K (2019) Dubai 2010}) 15. Qxa7+ {[%emt 0:00:04]} Nbd7 {[%emt 0:00:05]} (15... Nfd7 $142 16. Nxd7 Nxd7) 16. Nc4 {[%emt 0:00:21]} Qb8 {[%emt 0:00:46]} 17. d6+ {[%emt 0:00:14]} Kd8 {[%emt 0:00:07]} 18. Qxa6 {[%emt 0:00:09]} Bxd6 {[%emt 0:00:42]} 19. Rd1 {[%emt 0:00:55]} Bc7 {[%emt 0:01:04]} 20. Qa4 {[%emt 0:02:33]} e5 $18 {[%emt 0:00:48]} 21. Nxe4 {[%emt 0:00:50]} 1-0

[Event "Baltic Zonal II Stage 2018"]
[Site "Palanga"]
[Date "2018.06.17"]
[Round "6"]
[White "Haavamae, Henrik"]
[Black "Vedrickas, Tautvydas"]
[Result "1-0"]
[ECO "B06"]
[WhiteElo "2209"]
[BlackElo "2408"]
[Annotator "NA"]
[PlyCount "61"]
[EventDate "2018.??.??"]
[EventType "swiss"]
[EventCountry "LTU"]
[SourceTitle "playchess.com"]
[Source "ChessBase"]
[SourceQuality "1"]
[TimeControl "5400+30"]

1. e4 {[%emt 0:00:00]} g6 {[%emt 0:00:05]} 2. d4 {[%emt 0:00:00]} Bg7 {[%emt 0:00:05]} 3. Nc3 {[%emt 0:00:00]} d6 {[%emt 0:00:06]} 4. f4 {[%emt 0:00:07]} a6 {[%emt 0:00:06]} 5. Nf3 {[%emt 0:00:10]} b5 {[%emt 0:00:13]} 6. Bd3 {[%emt 0:00:22]} Nd7 {[%emt 0:04:43]} 7. e5 {[%emt 0:00:39]} Bb7 {[%emt 0:02:27] B06: Modern Defence} (7... c5 8. Be4 Rb8 9. Be3 b4 10. Ne2 Nh6 11. dxc5 Nxc5 12. Bxc5 dxc5 13. Bc6+ Bd7 14. Qd5 Rc8 15. Bxd7+ Qxd7 16. Qxd7+ Kxd7 {1-0 (41) Yu,Y (2760)-Adhiban,B (2655) chess.com INT 2018}) 8. Be4 {[%emt 0:01:05]} Qc8 {[%emt 0:00:25]} 9. Qe2 {[%emt 0:10:40]} Nh6 {[%emt 0:04:56]} 10. a4 {[%emt 0:05:42]} b4 {[%emt 0:06:45]} 11. Nd5 {[%emt 0:00:19]} e6 {[%emt 0:04:33]} 12. Nxb4 $146 {[%emt 0:00:31]} ({Predecessor:} 12. exd6 exd5 13. Bxd5+ Kf8 14. Bxb7 Qxb7 15. Qe7+ {1-0 (69) Bregadze,L (2484)-Shoker,S (2466) New York 2015}) 12... c5 {[%emt 0:38:12]} 13. dxc5 {[%emt 0:05:43]} Nxc5 {[%emt 0:02:25]} 14. Bxb7 {[%emt 0:00:06]} Qxb7 {[%emt 0:00:22]} 15. Nd3 {[%emt 0:00:17]} Nxd3+ {[%emt 0:01:13]} 16. cxd3 {[%emt 0:02:59]} dxe5 {[%emt 0:00:41]} 17. fxe5 {[%emt 0:00:38]} Qb4+ {[%emt 0:04:11]} 18. Qd2 {[%emt 0:01:17]} Rb8 {[%emt 0:01:47]} 19. Qxb4 {[%emt 0:15:27]} Rxb4 $14 {[%emt 0:03:11]} 20. Ra2 {[%emt 0:00:11]} Rb3 {[%emt 0:05:59]} 21. Ke2 {[%emt 0:00:27]} Nf5 {[%emt 0:01:31]} 22. Bd2 {[%emt 0:03:59]} O-O {[%emt 0:01:04]} 23. Rc1 {[%emt 0:09:20]} Rd8 {[%emt 0:01:37]} 24. Rc3 {[%emt 0:02:33]} Rb6 {[%emt 0:00:45]} 25. Rc4 {[%emt 0:03:32]} Rb3 {[%emt 0:01:16]} 26. Bc3 {[%emt 0:03:18]} Ne7 {[%emt 0:00:37]} 27. Nd4 {[%emt 0:01:15]} Rbb8 {[%emt 0:04:19]} 28. Nc6 {[%emt 0:00:21]} Nxc6 {[%emt 0:00:02]} 29. Rxc6 {[%emt 0:00:09]} Rd5 {[%emt 0:00:13]} 30. d4 {[%emt 0:02:47]} a5 {[%emt 0:00:16]} 31. Ra6 {[%emt 0:00:35]} 1-0

[Event "Baltic Zonal II Stage 2018"]
[Site "Palanga"]
[Date "2018.06.17"]
[Round "6"]
[White "Garanin, Aleksei"]
[Black "Pedoson, Georg Aleksander"]
[Result "0-1"]
[ECO "A52"]
[WhiteElo "2171"]
[BlackElo "2125"]
[Annotator "NA"]
[PlyCount "70"]
[EventDate "2018.??.??"]
[EventType "swiss"]
[EventCountry "LTU"]
[SourceTitle "playchess.com"]
[Source "ChessBase"]
[SourceQuality "1"]
[TimeControl "5400+30"]

1. d4 {[%emt 0:00:56]} Nf6 {[%emt 0:00:06]} 2. c4 {[%emt 0:00:31]} e5 {[%emt 0:00:05]} 3. dxe5 {[%emt 0:02:12]} Ng4 {[%emt 0:00:04]} 4. Bf4 {[%emt 0:00:26]} Nc6 {[%emt 0:00:39]} 5. Nf3 {[%emt 0:00:57]} Bb4+ {[%emt 0:00:05]} 6. Nbd2 {[%emt 0:01:01]} Qe7 {[%emt 0:00:11]} 7. a3 {[%emt 0:00:36]} Ngxe5 {[%emt 0:00:31]} 8. Nxe5 {[%emt 0:00:05]} Nxe5 {[%emt 0:00:14]} 9. e3 {[%emt 0:00:07]} Bxd2+ {[%emt 0:00:05]} 10. Qxd2 {[%emt 0:00:05]} d6 {[%emt 0:00:25]} 11. Be2 {[%emt 0:00:26]} O-O {[%emt 0:01:35]} 12. O-O {[%emt 0:00:35]} a5 {[%emt 0:01:25]} 13. Rac1 {[%emt 0:03:44]} b6 {[%emt 0:05:34]} 14. Qc3 {[%emt 0:26:07]} Ng6 {[%emt 0:05:12]} 15. Bg3 {[%emt 0:01:10]} a4 {[%emt 0:01:01]} 16. Bf3 {[%emt 0:02:20]} Ra5 $11 {[%emt 0:00:22]} 17. Rfd1 {[%emt 0:01:51]} Be6 {[%emt 0:03:52]} 18. Bd5 {[%emt 0:03:39]} h5 {[%emt 0:05:24]} 19. f4 {[%emt 0:02:31]} h4 {[%emt 0:06:02]} 20. Be1 {[%emt 0:01:16]} Bxd5 {[%emt 0:14:59]} 21. cxd5 {[%emt 0:00:39]} h3 {[%emt 0:02:10]} 22. Qd4 {[%emt 0:02:16]} Rc5 {[%emt 0:00:18]} 23. Bc3 {[%emt 0:01:08]} f5 {[%emt 0:00:22]} 24. gxh3 {[%emt 0:15:29]} Rc4 {[%emt 0:12:49]} 25. Qd3 {[%emt 0:00:16]} Nh4 {[%emt 0:08:29]} 26. Kf2 {[%emt 0:02:05]} b5 {[%emt 0:00:13]} 27. Rg1 {[%emt 0:00:46]} Rf7 {[%emt 0:00:17]} 28. Rg5 {[%emt 0:01:12]} Qe4 {[%emt 0:00:21]} 29. Qe2 {[%emt 0:03:45]} Re7 {[%emt 0:05:39]} 30. Rcg1 {[%emt 0:01:44]} g6 {[%emt 0:00:19]} 31. Rh5 {[%emt 0:02:29]} Rh7 {[%emt 0:02:13]} 32. Rxh7 {[%emt 0:11:35]} Kxh7 {[%emt 0:00:06]} 33. Rg5 {[%emt 0:01:06]} b4 {[%emt 0:00:35]} 34. axb4 {[%emt 0:02:36]} a3 {[%emt 0:00:18]} 35. Kg3 {[%emt 0:04:24]} Rxc3 {[%emt 0:00:50]} 0-1

[Event "Baltic Zonal II Stage 2018"]
[Site "Palanga"]
[Date "2018.06.19"]
[Round "8"]
[White "Vedrickas, Tautvydas"]
[Black "Klabis, Rokas"]
[Result "1-0"]
[ECO "E11"]
[WhiteElo "2408"]
[BlackElo "2383"]
[Annotator "NA"]
[PlyCount "95"]
[EventDate "2018.??.??"]
[EventType "swiss"]
[EventCountry "LTU"]
[SourceTitle "playchess.com"]
[Source "ChessBase"]
[SourceQuality "1"]
[TimeControl "5400+30"]

1. d4 {[%emt 0:00:00]} Nf6 {[%emt 0:00:06]} 2. c4 {[%emt 0:00:00]} e6 {[%emt 0:00:04]} 3. Nf3 {[%emt 0:00:52]} Bb4+ {[%emt 0:00:24]} 4. Nbd2 {[%emt 0:00:32]} d5 {[%emt 0:00:52]} 5. Qa4+ {[%emt 0:01:03]} Nc6 {[%emt 0:00:38]} 6. a3 {[%emt 0:00:43]} Be7 {[%emt 0:06:54]} 7. e3 {[%emt 0:03:41]} O-O {[%emt 0:05:35] E11: Bogo-Indian} 8. b4 {[%emt 0:02:46]} Bd7 {[%emt 0:08:33]} 9. Qc2 {[%emt 0:05:24]} a5 {[%emt 0:06:17]} 10. b5 {[%emt 0:04:20]} Na7 {[%emt 0:00:13]} 11. Rb1 {[%emt 0:02:27]} dxc4 $1 {[%emt 0:03:13]} 12. Bxc4 {[%emt 0:00:19]} c6 {[%emt 0:00:14]} 13. b6 {[%emt 0:09:53]} Nb5 {[%emt 0:08:22]} 14. Qd3 $146 {[%emt 0:01:26]} ({Predecessor:} 14. a4 Na3 15. Bxa3 Bxa3 {0-1 (26) Dinstuhl,V (2409)-Nikolic,P (2638) Germany 2013}) 14... Nd5 {[%emt 0:01:36]} 15. Ne5 {[%emt 0:04:49]} Be8 {[%emt 0:06:40]} 16. O-O {[%emt 0:04:32]} Nxb6 {[%emt 0:07:03]} 17. Bb3 {[%emt 0:00:41]} Nd7 {[%emt 0:04:20]} 18. Nxd7 {[%emt 0:07:10]} Bxd7 {[%emt 0:00:42]} 19. Bc2 {[%emt 0:00:52]} g6 $11 {[%emt 0:01:04]} 20. e4 {[%emt 0:08:43]} e5 {[%emt 0:09:21]} 21. dxe5 {[%emt 0:04:43]} Be6 {[%emt 0:00:05]} 22. a4 {[%emt 0:01:10]} Nd4 {[%emt 0:06:19]} 23. Rxb7 {[%emt 0:03:36]} Bb4 {[%emt 0:10:57]} 24. Nf3 {[%emt 0:05:59]} Bc8 {[%emt 0:03:37]} 25. Rxf7 {[%emt 0:01:14]} Rxf7 {[%emt 0:02:42]} 26. Qxd4 {[%emt 0:02:22]} Qxd4 {[%emt 0:01:08]} 27. Nxd4 {[%emt 0:00:05]} Ba6 {[%emt 0:00:58]} 28. e6 {[%emt 0:03:00]} Re7 {[%emt 0:00:49]} 29. Bb3 {[%emt 0:05:10]} Bxf1 {[%emt 0:00:44]} 30. Kxf1 {[%emt 0:00:54]} c5 {[%emt 0:01:23]} 31. Ne2 {[%emt 0:05:27]} Rd8 {[%emt 0:01:25]} 32. f4 {[%emt 0:01:27]} Bd2 {[%emt 0:00:27]} 33. Bxd2 {[%emt 0:03:16]} Rxd2 {[%emt 0:00:04]} 34. f5 {[%emt 0:00:08]} gxf5 {[%emt 0:00:24]} 35. exf5 {[%emt 0:00:06]} Rxe2 {[%emt 0:01:39]} 36. Kxe2 {[%emt 0:00:24]} Kg7 {[%emt 0:00:03]} 37. Bd5 {[%emt 0:01:17]} Kf6 {[%emt 0:00:34]} 38. g4 {[%emt 0:00:08]} Ke5 {[%emt 0:00:39]} 39. Bc6 {[%emt 0:00:34]} h5 {[%emt 0:01:23]} 40. h3 {[%emt 0:00:31]} hxg4 {[%emt 0:00:25]} 41. hxg4 {[%emt 0:00:04]} c4 {[%emt 0:00:22]} 42. Kd2 {[%emt 0:02:55]} c3+ {[%emt 0:00:50]} 43. Kc2 {[%emt 0:00:39]} Kf6 {[%emt 0:00:23]} 44. Bb5 {[%emt 0:01:55]} Rc7 {[%emt 0:00:27]} 45. Bd7 {[%emt 0:00:30]} Rc4 {[%emt 0:01:02]} 46. g5+ {[%emt 0:00:11]} Ke7 {[%emt 0:00:09]} 47. f6+ {[%emt 0:00:32]} Kd6 {[%emt 0:00:03]} 48. Bb5 {[%emt 0:00:25]} 1-0

[Event "Baltic Zonal II Stage 2018"]
[Site "Palanga"]
[Date "2018.06.19"]
[Round "8"]
[White "Samolins, Vitalijs"]
[Black "Chukavin, Kirill"]
[Result "1/2-1/2"]
[ECO "B81"]
[WhiteElo "2406"]
[BlackElo "2256"]
[Annotator "NA"]
[PlyCount "51"]
[EventDate "2018.??.??"]
[EventType "swiss"]
[EventCountry "LTU"]
[SourceTitle "playchess.com"]
[Source "ChessBase"]
[SourceQuality "1"]
[TimeControl "5400+30"]

1. e4 {[%emt 0:00:00]} c5 {[%emt 0:00:23]} 2. Nf3 {[%emt 0:00:00]} e6 {[%emt 0:01:12]} 3. d4 {[%emt 0:00:25]} cxd4 {[%emt 0:00:07]} 4. Nxd4 {[%emt 0:00:06]} Nf6 {[%emt 0:00:53]} 5. Nc3 {[%emt 0:00:54]} d6 {[%emt 0:01:18]} 6. g4 {[%emt 0:01:14]} e5 {[%emt 0:03:21]} 7. Bb5+ {[%emt 0:00:43]} Bd7 {[%emt 0:01:17]} 8. Bxd7+ {[%emt 0:00:14]} Qxd7 {[%emt 0:00:23]} 9. Nf5 {[%emt 0:00:10]} h5 {[%emt 0:00:28]} 10. gxh5 {[%emt 0:01:31]} Nxh5 {[%emt 0:00:49]} 11. Ng3 {[%emt 0:02:56]} g6 {[%emt 0:12:04]} 12. Nd5 {[%emt 0:04:58]} Be7 {[%emt 0:02:52]} 13. h4 {[%emt 0:02:44]} Na6 $14 {[%emt 0:03:13]} 14. Bg5 {[%emt 0:32:57]} Nxg3 {[%emt 0:25:34]} 15. Bxe7 {[%emt 0:00:13]} Nh5 {[%emt 0:06:45]} 16. c3 {[%emt 0:22:06]} Nc7 {[%emt 0:03:45]} 17. Nf6+ {[%emt 0:01:27]} Nxf6 {[%emt 0:00:52]} 18. Bxf6 {[%emt 0:00:01]} Rh5 {[%emt 0:03:07]} 19. Qf3 {[%emt 0:03:35]} Ne6 {[%emt 0:05:02]} 20. O-O-O {[%emt 0:01:53]} Rc8 {[%emt 0:00:29]} 21. Kb1 {[%emt 0:01:06]} Rc6 {[%emt 0:03:01]} 22. Rd2 {[%emt 0:02:54]} Nf8 {[%emt 0:08:02]} 23. Bg5 {[%emt 0:05:21]} Ne6 {[%emt 0:00:46]} 24. Bf6 {[%emt 0:04:34]} Nf8 {[%emt 0:00:11]} 25. Bg5 {[%emt 0:00:51]} Ne6 {[%emt 0:00:22]} 26. Bf6 {[%emt 0:01:06]} 1/2-1/2